[Event "Live Chess"]
[Site "Chess.com"]
[Date "2021.02.06"]
[Round "-"]
[White "LucasLiu88"]
[Black "Night362"]
[Result "1-0"]
[CurrentPosition "4Rk1r/1R4pp/3Npp2/8/2r5/8/1P3PPP/1K6 b - -"]
[Timezone "UTC"]
[ECO "B33"]
[ECOUrl "https://www.chess.com/openings/Sicilian-Defense-Open-3...cxd4-4.Nxd4"]
[UTCDate "2021.02.06"]
[UTCTime "20:31:33"]
[WhiteElo "1261"]
[BlackElo "1077"]
[TimeControl "1200+10"]
[Termination "LucasLiu88 won by checkmate"]
[StartTime "20:31:33"]
[EndDate "2021.02.06"]
[EndTime "20:39:38"]
[Link "https://www.chess.com/live/game/6472990473"]

1. e4 {[%clk 0:20:10]} 1... c5 {[%clk 0:20:04.8]} 2. Nf3 {[%clk 0:20:18.8]} 2... Nc6 {[%clk 0:20:10.9]} 3. d4 {[%clk 0:20:27.8]} 3... cxd4 {[%clk 0:20:16]} 4. Nxd4 {[%clk 0:20:37.1]} 4... Nxd4 {[%clk 0:20:20.9]} 5. Qxd4 {[%clk 0:20:45.9]} 5... Nf6 {[%clk 0:20:28.2]} 6. Nc3 {[%clk 0:20:54.7]} 6... Qb6 {[%clk 0:20:28]} 7. Be3 {[%clk 0:20:59.8]} 7... Qxd4 {[%clk 0:20:34.7]} 8. Bxd4 {[%clk 0:21:08.7]} 8... d6 {[%clk 0:20:41.4]} 9. Bb5+ {[%clk 0:21:13.8]} 9... Bd7 {[%clk 0:20:46]} 10. O-O-O {[%clk 0:21:19.9]} 10... Bxb5 {[%clk 0:20:51.8]} 11. Nxb5 {[%clk 0:21:28.9]} 11... Kd8 {[%clk 0:20:55.6]} 12. Bxa7 {[%clk 0:21:29]} 12... Nxe4 {[%clk 0:20:59.2]} 13. Bb6+ {[%clk 0:21:37.2]} 13... Kd7 {[%clk 0:21:02.5]} 14. Rd4 {[%clk 0:21:46.1]} 14... Nf6 {[%clk 0:21:04.6]} 15. Rc4 {[%clk 0:21:53.9]} 15... Nd5 {[%clk 0:21:01.5]} 16. Bc7 {[%clk 0:21:07.6]} 16... Rxa2 {[%clk 0:21:00.8]} 17. Kb1 {[%clk 0:21:16]} 17... Ra8 {[%clk 0:21:03.3]} 18. Rd1 {[%clk 0:21:24.5]} 18... e6 {[%clk 0:21:06]} 19. Rcd4 {[%clk 0:20:13.6]} 19... Rc8 {[%clk 0:20:51.5]} 20. c4 {[%clk 0:20:21.5]} 20... Nf6 {[%clk 0:20:45.9]} 21. Bxd6 {[%clk 0:20:25]} 21... Bxd6 {[%clk 0:20:46.7]} 22. Rxd6+ {[%clk 0:20:24.6]} 22... Ke7 {[%clk 0:20:53.6]} 23. Rb6 {[%clk 0:20:19.4]} 23... Rxc4 {[%clk 0:20:34.3]} 24. Rxb7+ {[%clk 0:20:26]} 24... Kf8 {[%clk 0:20:30.9]} 25. Rd8+ {[%clk 0:20:21.6]} 25... Ne8 {[%clk 0:20:30.4]} 26. Nd6 {[%clk 0:20:30.2]} 26... f6 {[%clk 0:20:21.1]} 27. Rxe8# {[%clk 0:20:38]} 1-0

[Event "Live Chess"]
[Site "Chess.com"]
[Date "2021.02.06"]
[Round "-"]
[White "10dral"]
[Black "anuraagaravind"]
[Result "1-0"]
[CurrentPosition "r7/2pp4/6p1/p3q1k1/5R1Q/2P1n3/5PPP/4R1K1 b - -"]
[Timezone "UTC"]
[ECO "C47"]
[ECOUrl "https://www.chess.com/openings/Four-Knights-Game-Italian-Variation"]
[UTCDate "2021.02.06"]
[UTCTime "20:31:36"]
[WhiteElo "1304"]
[BlackElo "1217"]
[TimeControl "1200+10"]
[Termination "10dral won by checkmate"]
[StartTime "20:31:36"]
[EndDate "2021.02.06"]
[EndTime "20:45:37"]
[Link "https://www.chess.com/live/game/6472990797"]

1. e4 {[%clk 0:20:04.5]} 1... e5 {[%clk 0:20:08]} 2. Nf3 {[%clk 0:20:12.4]} 2... Nc6 {[%clk 0:20:16.5]} 3. Bc4 {[%clk 0:20:19.8]} 3... Nf6 {[%clk 0:20:22]} 4. Nc3 {[%clk 0:20:27.3]} 4... Nxe4 {[%clk 0:20:29]} 5. d3 {[%clk 0:20:22.5]} 5... Nxc3 {[%clk 0:20:36.9]} 6. bxc3 {[%clk 0:20:30.5]} 6... Bc5 {[%clk 0:20:44.6]} 7. O-O {[%clk 0:20:33.7]} 7... O-O {[%clk 0:20:52.1]} 8. d4 {[%clk 0:20:16.4]} 8... exd4 {[%clk 0:20:58]} 9. cxd4 {[%clk 0:20:23.3]} 9... Bd6 {[%clk 0:20:44.5]} 10. Be3 {[%clk 0:20:08.4]} 10... Re8 {[%clk 0:20:47]} 11. Qd3 {[%clk 0:20:04.9]} 11... a6 {[%clk 0:20:51.1]} 12. Ng5 {[%clk 0:20:05.5]} 12... g6 {[%clk 0:20:22.8]} 13. Bxf7+ {[%clk 0:20:07.1]} 13... Kf8 {[%clk 0:20:27.2]} 14. Bxe8 {[%clk 0:20:09.3]} 14... Qxe8 {[%clk 0:20:25.3]} 15. Nxh7+ {[%clk 0:20:15.7]} 15... Kg7 {[%clk 0:20:31.2]} 16. Ng5 {[%clk 0:20:06.5]} 16... Nb4 {[%clk 0:20:34.7]} 17. Qc3 {[%clk 0:19:48.7]} 17... b6 {[%clk 0:20:23.5]} 18. d5+ {[%clk 0:19:51.4]} 18... Kg8 {[%clk 0:20:28]} 19. Rfd1 {[%clk 0:18:16.1]} 19... Bb7 {[%clk 0:20:22.7]} 20. Qb3 {[%clk 0:17:06.8]} 20... a5 {[%clk 0:20:13.1]} 21. a4 {[%clk 0:17:09.1]} 21... b5 {[%clk 0:20:18]} 22. c3 {[%clk 0:16:34.1]} 22... bxa4 {[%clk 0:20:24.9]} 23. Rxa4 {[%clk 0:16:32.2]} 23... Nxd5 {[%clk 0:20:18.3]} 24. Qxb7 {[%clk 0:16:24.2]} 24... Nxe3 {[%clk 0:20:21.8]} 25. Qb3+ {[%clk 0:16:05.2]} 25... Kg7 {[%clk 0:20:10.5]} 26. Re1 {[%clk 0:15:52.6]} 26... Bf4 {[%clk 0:20:10.3]} 27. Rxf4 {[%clk 0:15:54.9]} 27... Qe5 {[%clk 0:20:08.6]} 28. Qf7+ {[%clk 0:15:37]} 28... Kh6 {[%clk 0:20:13.4]} 29. Qh7+ {[%clk 0:15:41.9]} 29... Kxg5 {[%clk 0:20:22.1]} 30. Qh4# {[%clk 0:15:42.2]} 1-0

[Event "Live Chess"]
[Site "Chess.com"]
[Date "2021.02.06"]
[Round "-"]
[White "Tactivian"]
[Black "Tyler_YABOI_Walsh"]
[Result "0-1"]
[CurrentPosition "1k5r/Np3ppp/4p3/2b1P3/5r2/8/P5PP/R5KR w - -"]
[Timezone "UTC"]
[ECO "D06"]
[ECOUrl "https://www.chess.com/openings/Queens-Gambit-Declined-Marshall-Defense-3.cxd5-Nxd5-4.e4"]
[UTCDate "2021.02.06"]
[UTCTime "20:31:38"]
[WhiteElo "797"]
[BlackElo "949"]
[TimeControl "1200+10"]
[Termination "Tyler_YABOI_Walsh won by checkmate"]
[StartTime "20:31:38"]
[EndDate "2021.02.06"]
[EndTime "20:35:25"]
[Link "https://www.chess.com/live/game/6472991149"]

1. d4 {[%clk 0:20:10]} 1... d5 {[%clk 0:20:08.5]} 2. c4 {[%clk 0:20:18.1]} 2... Nf6 {[%clk 0:20:07]} 3. cxd5 {[%clk 0:20:26]} 3... Nxd5 {[%clk 0:20:15.8]} 4. e4 {[%clk 0:20:34.1]} 4... Nf6 {[%clk 0:20:22]} 5. e5 {[%clk 0:20:42]} 5... Nd5 {[%clk 0:20:30.7]} 6. Bc4 {[%clk 0:20:48.4]} 6... Nb6 {[%clk 0:20:36]} 7. Bb5+ {[%clk 0:20:54.8]} 7... c6 {[%clk 0:20:42.9]} 8. Bd3 {[%clk 0:21:01.7]} 8... Qxd4 {[%clk 0:20:47.5]} 9. Nf3 {[%clk 0:20:58.9]} 9... Bg4 {[%clk 0:20:48.5]} 10. Nxd4 {[%clk 0:21:00.2]} 10... Bxd1 {[%clk 0:20:56.7]} 11. Kxd1 {[%clk 0:21:07.1]} 11... Nd5 {[%clk 0:21:01.1]} 12. Nc3 {[%clk 0:21:09.1]} 12... Nf4 {[%clk 0:21:07.8]} 13. Be2 {[%clk 0:21:11.1]} 13... Nxe2 {[%clk 0:21:14.8]} 14. Ndxe2 {[%clk 0:21:18.6]} 14... Nd7 {[%clk 0:21:24.3]} 15. f4 {[%clk 0:21:24.8]} 15... e6 {[%clk 0:21:29.2]} 16. b4 {[%clk 0:21:30.4]} 16... c5 {[%clk 0:21:35.6]} 17. bxc5 {[%clk 0:21:38.3]} 17... Nxc5 {[%clk 0:21:44.6]} 18. Nb5 {[%clk 0:21:44.2]} 18... O-O-O+ {[%clk 0:21:48.8]} 19. Bd2 {[%clk 0:21:47]} 19... Ne4 {[%clk 0:21:52.2]} 20. Nxa7+ {[%clk 0:21:54.2]} 20... Kb8 {[%clk 0:21:59]} 21. Nc3 {[%clk 0:21:54.6]} 21... Rxd2+ {[%clk 0:22:04.3]} 22. Ke1 {[%clk 0:21:57.5]} 22... Rd4 {[%clk 0:22:07.3]} 23. Nxe4 {[%clk 0:22:05.5]} 23... Rxe4+ {[%clk 0:22:15.7]} 24. Kf1 {[%clk 0:22:08.1]} 24... Rxf4+ {[%clk 0:22:24.1]} 25. Kg1 {[%clk 0:22:16]} 25... Bc5# {[%clk 0:22:30.4]} 0-1

[Event "Live Chess"]
[Site "Chess.com"]
[Date "2021.02.06"]
[Round "-"]
[White "buddyram"]
[Black "TerribleResolution"]
[Result "1-0"]
[CurrentPosition "QK6/8/1R6/8/k7/4B3/PPP2PPP/RN6 b - -"]
[Timezone "UTC"]
[ECO "C57"]
[ECOUrl "https://www.chess.com/openings/Italian-Game-Fried-Liver-Attack"]
[UTCDate "2021.02.06"]
[UTCTime "20:31:35"]
[WhiteElo "1381"]
[BlackElo "469"]
[TimeControl "1200+10"]
[Termination "buddyram won by checkmate"]
[StartTime "20:31:35"]
[EndDate "2021.02.06"]
[EndTime "20:36:31"]
[Link "https://www.chess.com/live/game/6472991445"]

1. e4 {[%clk 0:20:09.5]} 1... e5 {[%clk 0:20:06.8]} 2. Nf3 {[%clk 0:20:17.4]} 2... Nc6 {[%clk 0:20:15.4]} 3. Bc4 {[%clk 0:20:18.1]} 3... Nf6 {[%clk 0:20:22.1]} 4. Ng5 {[%clk 0:20:25.9]} 4... d5 {[%clk 0:20:27.4]} 5. exd5 {[%clk 0:20:33.9]} 5... Nxd5 {[%clk 0:20:36.4]} 6. Nxf7 {[%clk 0:20:42.2]} 6... Qe7 {[%clk 0:20:30]} 7. Nxh8 {[%clk 0:20:45]} 7... Bf5 {[%clk 0:20:34.1]} 8. Bxd5 {[%clk 0:20:47.1]} 8... Nd4 {[%clk 0:20:39.9]} 9. Bf7+ {[%clk 0:20:46.9]} 9... Qxf7 {[%clk 0:20:47.1]} 10. Nxf7 {[%clk 0:20:54.7]} 10... Kxf7 {[%clk 0:20:56.3]} 11. O-O {[%clk 0:21:02.9]} 11... Ne2+ {[%clk 0:21:04.6]} 12. Qxe2 {[%clk 0:21:11]} 12... Bd3 {[%clk 0:21:11.3]} 13. Qxd3 {[%clk 0:21:19.6]} 13... e4 {[%clk 0:21:20.8]} 14. Qxe4 {[%clk 0:21:27.1]} 14... Re8 {[%clk 0:21:29.2]} 15. Qd5+ {[%clk 0:21:33.7]} 15... Ke7 {[%clk 0:21:37.4]} 16. Re1+ {[%clk 0:21:41]} 16... Kf6 {[%clk 0:21:42.6]} 17. Rxe8 {[%clk 0:21:50.9]} 17... g6 {[%clk 0:21:49.2]} 18. Rxf8+ {[%clk 0:21:58.7]} 18... Kg7 {[%clk 0:21:56.8]} 19. Rb8 {[%clk 0:22:05.9]} 19... Kh6 {[%clk 0:22:03.9]} 20. Qxb7 {[%clk 0:22:15.4]} 20... Kh5 {[%clk 0:22:09.9]} 21. Qxc7 {[%clk 0:22:25.3]} 21... Kh6 {[%clk 0:22:18]} 22. Qxa7 {[%clk 0:22:34.2]} 22... Kh5 {[%clk 0:22:26.1]} 23. Rh8 {[%clk 0:22:42.1]} 23... Kh6 {[%clk 0:22:35.5]} 24. Qxh7+ {[%clk 0:22:49.2]} 24... Kg5 {[%clk 0:22:44]} 25. d4+ {[%clk 0:22:57.8]} 25... Kf6 {[%clk 0:22:52.3]} 26. Rf8+ {[%clk 0:23:06]} 26... Ke6 {[%clk 0:23:00]} 27. Qxg6+ {[%clk 0:23:12.9]} 27... Kd5 {[%clk 0:23:08.3]} 28. Qf7+ {[%clk 0:23:20.6]} 28... Kxd4 {[%clk 0:23:14.2]} 29. Be3+ {[%clk 0:23:28.8]} 29... Ke4 {[%clk 0:23:22.5]} 30. Qf3+ {[%clk 0:23:36.2]} 30... Ke5 {[%clk 0:23:27.2]} 31. Re8+ {[%clk 0:23:44.5]} 31... Kd6 {[%clk 0:23:34.9]} 32. Qf6+ {[%clk 0:23:53.2]} 32... Kd7 {[%clk 0:23:43.4]} 33. Qd8+ {[%clk 0:24:02.1]} 33... Kc6 {[%clk 0:23:51.9]} 34. Re6+ {[%clk 0:24:08.6]} 34... Kb5 {[%clk 0:24:00.6]} 35. Qc8 {[%clk 0:24:09.5]} 35... Kb4 {[%clk 0:24:09]} 36. Rb6+ {[%clk 0:24:08.6]} 36... Ka5 {[%clk 0:24:17.7]} 37. Kf1 {[%clk 0:23:55.9]} 37... Ka4 {[%clk 0:24:19.7]} 38. Ke2 {[%clk 0:24:04.2]} 38... Ka5 {[%clk 0:24:25.1]} 39. Kd3 {[%clk 0:24:12.3]} 39... Ka4 {[%clk 0:24:33.2]} 40. Kc4 {[%clk 0:24:21.2]} 40... Ka5 {[%clk 0:24:42.4]} 41. Kd5 {[%clk 0:24:30.2]} 41... Ka4 {[%clk 0:24:51.4]} 42. Kc6 {[%clk 0:24:39.1]} 42... Ka5 {[%clk 0:24:59.7]} 43. Kb7 {[%clk 0:24:46.9]} 43... Ka4 {[%clk 0:25:08.3]} 44. Ka7 {[%clk 0:24:54.7]} 44... Ka5 {[%clk 0:25:17.2]} 45. Qa8 {[%clk 0:25:02.4]} 45... Ka4 {[%clk 0:25:26.1]} 46. Kb8# {[%clk 0:25:11]} 1-0

[Event "Live Chess"]
[Site "Chess.com"]
[Date "2021.02.06"]
[Round "-"]
[White "akshat609"]
[Black "Lefthanded32"]
[Result "0-1"]
[CurrentPosition "r3k2r/p2n3p/bpp1pn2/6p1/4P2b/PPN2N1P/2PBBq2/R2Q1K1R w kq -"]
[Timezone "UTC"]
[ECO "A00"]
[ECOUrl "https://www.chess.com/openings/Mieses-Opening"]
[UTCDate "2021.02.06"]
[UTCTime "20:34:01"]
[WhiteElo "439"]
[BlackElo "1314"]
[TimeControl "1200+10"]
[Termination "Lefthanded32 won by checkmate"]
[StartTime "20:34:01"]
[EndDate "2021.02.06"]
[EndTime "20:38:33"]
[Link "https://www.chess.com/live/game/6473012544"]

1. d3 {[%clk 0:20:08.8]} 1... d5 {[%clk 0:20:00.7]} 2. e3 {[%clk 0:20:16]} 2... f5 {[%clk 0:20:00.3]} 3. Nf3 {[%clk 0:20:24.7]} 3... Nf6 {[%clk 0:20:07.4]} 4. Bd2 {[%clk 0:20:33.5]} 4... e6 {[%clk 0:20:10.7]} 5. Be2 {[%clk 0:20:41.2]} 5... Bd6 {[%clk 0:20:14.2]} 6. Nc3 {[%clk 0:20:40.5]} 6... c6 {[%clk 0:20:16.4]} 7. b3 {[%clk 0:20:48.1]} 7... b6 {[%clk 0:20:18.4]} 8. a3 {[%clk 0:20:56.4]} 8... Ba6 {[%clk 0:20:26.5]} 9. g3 {[%clk 0:21:04.2]} 9... Nbd7 {[%clk 0:20:32.8]} 10. h3 {[%clk 0:21:13.7]} 10... g5 {[%clk 0:19:48.8]} 11. e4 {[%clk 0:21:08.5]} 11... dxe4 {[%clk 0:19:39.4]} 12. dxe4 {[%clk 0:21:16.4]} 12... fxe4 {[%clk 0:19:46.4]} 13. Ng1 {[%clk 0:21:16.5]} 13... Qc7 {[%clk 0:19:39]} 14. f3 {[%clk 0:21:21.6]} 14... Bxg3+ {[%clk 0:19:32.5]} 15. Kf1 {[%clk 0:21:20.9]} 15... Bh4 {[%clk 0:19:38.3]} 16. fxe4 {[%clk 0:21:27]} 16... Qg3 {[%clk 0:19:41.9]} 17. Nf3 {[%clk 0:21:31.5]} 17... Qf2# {[%clk 0:19:45.7]} 0-1

[Event "Live Chess"]
[Site "Chess.com"]
[Date "2021.02.06"]
[Round "-"]
[White "A_slithering_ape"]
[Black "andrewaballantyne"]
[Result "0-1"]
[CurrentPosition "3r2k1/pb3ppp/8/1Qp5/N7/1P2P1P1/P4P1P/3q1K2 w - -"]
[Timezone "UTC"]
[ECO "A46"]
[ECOUrl "https://www.chess.com/openings/Indian-Game-Knights-Variation"]
[UTCDate "2021.02.06"]
[UTCTime "20:32:02"]
[WhiteElo "1090"]
[BlackElo "1370"]
[TimeControl "1200+10"]
[Termination "andrewaballantyne won by checkmate"]
[StartTime "20:32:02"]
[EndDate "2021.02.06"]
[EndTime "20:47:11"]
[Link "https://www.chess.com/live/game/6472994670"]

1. Nf3 {[%clk 0:20:09.4]} 1... Nf6 {[%clk 0:19:55]} 2. d4 {[%clk 0:20:15.6]} 2... d5 {[%clk 0:19:59]} 3. e3 {[%clk 0:20:22.6]} 3... e6 {[%clk 0:20:03]} 4. c4 {[%clk 0:20:30.8]} 4... c5 {[%clk 0:19:48.2]} 5. b3 {[%clk 0:20:30.1]} 5... Nc6 {[%clk 0:19:45.2]} 6. Bb2 {[%clk 0:20:31.9]} 6... Bd6 {[%clk 0:19:22.3]} 7. cxd5 {[%clk 0:20:24]} 7... exd5 {[%clk 0:19:26.1]} 8. Nc3 {[%clk 0:20:22]} 8... Be7 {[%clk 0:18:33.8]} 9. Bb5 {[%clk 0:20:10.3]} 9... O-O {[%clk 0:18:35.3]} 10. Bxc6 {[%clk 0:19:59.5]} 10... bxc6 {[%clk 0:18:39.1]} 11. Ne5 {[%clk 0:19:57.9]} 11... Qc7 {[%clk 0:17:45.3]} 12. Na4 {[%clk 0:19:39.4]} 12... cxd4 {[%clk 0:17:08.7]} 13. Qxd4 {[%clk 0:19:31]} 13... c5 {[%clk 0:16:54.3]} 14. Qc3 {[%clk 0:19:14]} 14... Ne4 {[%clk 0:16:39.2]} 15. Qd3 {[%clk 0:19:01.3]} 15... Bf6 {[%clk 0:15:49.4]} 16. Qxd5 {[%clk 0:18:57.9]} 16... Bb7 {[%clk 0:15:45.3]} 17. Qc4 {[%clk 0:18:17]} 17... Bxe5 {[%clk 0:15:36.6]} 18. Bxe5 {[%clk 0:18:20.8]} 18... Qxe5 {[%clk 0:15:38.2]} 19. Rd1 {[%clk 0:18:19.9]} 19... Rfd8 {[%clk 0:15:14.3]} 20. Rxd8+ {[%clk 0:18:25.5]} 20... Rxd8 {[%clk 0:15:19.3]} 21. O-O {[%clk 0:18:26.3]} 21... Nd2 {[%clk 0:15:07.1]} 22. Qb5 {[%clk 0:18:24]} 22... Nxf1 {[%clk 0:14:53.7]} 23. Kxf1 {[%clk 0:18:26.1]} 23... Qd6 {[%clk 0:14:43.4]} 24. g3 {[%clk 0:18:15.4]} 24... Qd1# {[%clk 0:14:47.6]} 0-1

[Event "Live Chess"]
[Site "Chess.com"]
[Date "2021.02.06"]
[Round "-"]
[White "adichi"]
[Black "JazzyAsh"]
[Result "1-0"]
[CurrentPosition "7r/1p6/r3pp2/p1Rk4/P7/4PPB1/3N1KPP/2R5 b - -"]
[Timezone "UTC"]
[ECO "D00"]
[ECOUrl "https://www.chess.com/openings/Queens-Pawn-Opening-Accelerated-London-System"]
[UTCDate "2021.02.06"]
[UTCTime "20:32:04"]
[WhiteElo "1431"]
[BlackElo "964"]
[TimeControl "1200+10"]
[Termination "adichi won by checkmate"]
[StartTime "20:32:04"]
[EndDate "2021.02.06"]
[EndTime "20:46:06"]
[Link "https://www.chess.com/live/game/6472995200"]

1. d4 {[%clk 0:20:07.8]} 1... d5 {[%clk 0:20:08.3]} 2. Bf4 {[%clk 0:20:14.2]} 2... Nc6 {[%clk 0:20:15.4]} 3. e3 {[%clk 0:20:21.9]} 3... Nf6 {[%clk 0:20:23.1]} 4. c3 {[%clk 0:20:27.5]} 4... Bf5 {[%clk 0:20:28.8]} 5. Bd3 {[%clk 0:20:28.2]} 5... Bg6 {[%clk 0:20:27.1]} 6. Nf3 {[%clk 0:20:30.8]} 6... e6 {[%clk 0:20:31.2]} 7. Ne5 {[%clk 0:20:32]} 7... Nxe5 {[%clk 0:20:39.2]} 8. dxe5 {[%clk 0:20:29.4]} 8... Ne4 {[%clk 0:20:43.6]} 9. Qc2 {[%clk 0:20:01.6]} 9... f6 {[%clk 0:20:46]} 10. f3 {[%clk 0:19:33.8]} 10... Nf2 {[%clk 0:19:03.1]} 11. Bxg6+ {[%clk 0:19:03.8]} 11... hxg6 {[%clk 0:19:06.2]} 12. Qxg6+ {[%clk 0:18:57.8]} 12... Kd7 {[%clk 0:19:05.5]} 13. Kxf2 {[%clk 0:18:23.4]} 13... fxe5 {[%clk 0:18:56.2]} 14. Bxe5 {[%clk 0:17:41.1]} 14... Qh4+ {[%clk 0:18:47.9]} 15. Bg3 {[%clk 0:17:15.7]} 15... Qf6 {[%clk 0:18:43.7]} 16. Qxf6 {[%clk 0:17:15]} 16... gxf6 {[%clk 0:18:48.8]} 17. Nd2 {[%clk 0:17:05.1]} 17... Bc5 {[%clk 0:18:46.7]} 18. b4 {[%clk 0:17:03.7]} 18... Bb6 {[%clk 0:18:48.6]} 19. a4 {[%clk 0:17:10.1]} 19... a5 {[%clk 0:18:55.1]} 20. b5 {[%clk 0:17:09.2]} 20... c6 {[%clk 0:18:47]} 21. bxc6+ {[%clk 0:16:30.9]} 21... Kxc6 {[%clk 0:18:53.4]} 22. Rab1 {[%clk 0:16:34.7]} 22... Rac8 {[%clk 0:18:42.5]} 23. Rhc1 {[%clk 0:16:35.6]} 23... Ra8 {[%clk 0:18:39.4]} 24. c4 {[%clk 0:16:38.8]} 24... Ra6 {[%clk 0:18:35.6]} 25. cxd5+ {[%clk 0:16:38.3]} 25... Kxd5 {[%clk 0:18:42.5]} 26. Rb5+ {[%clk 0:16:27.1]} 26... Bc5 {[%clk 0:18:30.1]} 27. Rbxc5# {[%clk 0:16:31.7]} 1-0

[Event "Live Chess"]
[Site "Chess.com"]
[Date "2021.02.06"]
[Round "-"]
[White "GivingPigeon"]
[Black "lerdog"]
[Result "0-1"]
[CurrentPosition "6k1/ppp2pp1/5r2/4nPKP/1P4r1/1R6/P2P2P1/5R2 w - -"]
[Timezone "UTC"]
[ECO "C50"]
[ECOUrl "https://www.chess.com/openings/Giuoco-Piano-Game-Four-Knights-Game"]
[UTCDate "2021.02.06"]
[UTCTime "20:32:04"]
[WhiteElo "702"]
[BlackElo "1090"]
[TimeControl "1200+10"]
[Termination "lerdog won by checkmate"]
[StartTime "20:32:04"]
[EndDate "2021.02.06"]
[EndTime "20:44:23"]
[Link "https://www.chess.com/live/game/6472995527"]

1. e4 {[%clk 0:20:09.9]} 1... e5 {[%clk 0:20:06.4]} 2. Nf3 {[%clk 0:20:13.5]} 2... Nc6 {[%clk 0:20:10.5]} 3. Nc3 {[%clk 0:20:20.3]} 3... Nf6 {[%clk 0:20:18.3]} 4. Bc4 {[%clk 0:20:28.3]} 4... Bc5 {[%clk 0:20:26.8]} 5. Ng5 {[%clk 0:20:35.9]} 5... d5 {[%clk 0:20:03.4]} 6. exd5 {[%clk 0:20:42.1]} 6... Nd4 {[%clk 0:20:09.5]} 7. Nb5 {[%clk 0:20:32]} 7... O-O {[%clk 0:19:53.9]} 8. Nxd4 {[%clk 0:20:28.7]} 8... exd4 {[%clk 0:19:59.3]} 9. Qf3 {[%clk 0:20:23.3]} 9... Re8+ {[%clk 0:20:00.9]} 10. Kf1 {[%clk 0:20:28.7]} 10... Qe7 {[%clk 0:19:43.4]} 11. Qd1 {[%clk 0:20:22.6]} 11... Bg4 {[%clk 0:19:38.3]} 12. f3 {[%clk 0:20:29.7]} 12... Bf5 {[%clk 0:19:39.3]} 13. b3 {[%clk 0:20:19.9]} 13... d3 {[%clk 0:19:46.5]} 14. cxd3 {[%clk 0:20:28.7]} 14... Bxd3+ {[%clk 0:19:54.5]} 15. Bxd3 {[%clk 0:20:26.6]} 15... Nxd5 {[%clk 0:19:38.8]} 16. Bb2 {[%clk 0:20:26]} 16... Qxg5 {[%clk 0:19:38.5]} 17. h4 {[%clk 0:20:25.2]} 17... Qg3 {[%clk 0:19:19.5]} 18. Bxh7+ {[%clk 0:19:40.7]} 18... Kxh7 {[%clk 0:19:24.3]} 19. Qc2+ {[%clk 0:19:43.1]} 19... Kg8 {[%clk 0:19:03.6]} 20. Qxc5 {[%clk 0:19:51.5]} 20... Nf4 {[%clk 0:19:09.1]} 21. Qf2 {[%clk 0:19:08.8]} 21... Qxf2+ {[%clk 0:18:56.2]} 22. Kxf2 {[%clk 0:19:17.5]} 22... Nd3+ {[%clk 0:19:04.8]} 23. Kg3 {[%clk 0:19:23.2]} 23... Nxb2 {[%clk 0:19:11.3]} 24. h5 {[%clk 0:19:23.7]} 24... Re6 {[%clk 0:19:11.3]} 25. Rab1 {[%clk 0:19:25.8]} 25... Nd3 {[%clk 0:19:19]} 26. b4 {[%clk 0:19:04.7]} 26... Rd8 {[%clk 0:19:16.5]} 27. Rb3 {[%clk 0:18:57.2]} 27... Ne5 {[%clk 0:19:11.7]} 28. f4 {[%clk 0:19:03.9]} 28... Nc6 {[%clk 0:19:13.7]} 29. f5 {[%clk 0:19:11.8]} 29... Rf6 {[%clk 0:19:14.5]} 30. Kg4 {[%clk 0:19:14]} 30... Rd4+ {[%clk 0:19:19.3]} 31. Kg5 {[%clk 0:19:17.6]} 31... Ne5 {[%clk 0:19:19.8]} 32. Rf1 {[%clk 0:19:12.9]} 32... Rg4# {[%clk 0:19:24.6]} 0-1

[Event "Live Chess"]
[Site "Chess.com"]
[Date "2021.02.06"]
[Round "-"]
[White "OlympusMons00"]
[Black "pranshikku"]
[Result "1-0"]
[CurrentPosition "2b1k1Q1/p1q5/8/1p2p3/8/2N5/PPP3PP/2K2R2 b - -"]
[Timezone "UTC"]
[ECO "C45"]
[ECOUrl "https://www.chess.com/openings/Scotch-Game-Classical-Variation-5.Be3"]
[UTCDate "2021.02.06"]
[UTCTime "20:32:11"]
[WhiteElo "1087"]
[BlackElo "1212"]
[TimeControl "1200+10"]
[Termination "OlympusMons00 won by resignation"]
[StartTime "20:32:11"]
[EndDate "2021.02.06"]
[EndTime "20:47:32"]
[Link "https://www.chess.com/live/game/6472995812"]

1. e4 {[%clk 0:20:03.6]} 1... e5 {[%clk 0:20:08.2]} 2. Nf3 {[%clk 0:20:09.8]} 2... Nc6 {[%clk 0:20:15.3]} 3. d4 {[%clk 0:20:17.6]} 3... exd4 {[%clk 0:20:21.6]} 4. Nxd4 {[%clk 0:20:24.6]} 4... Bc5 {[%clk 0:20:29]} 5. Be3 {[%clk 0:20:28.4]} 5... Nxd4 {[%clk 0:20:22.1]} 6. Bxd4 {[%clk 0:20:34.9]} 6... Bxd4 {[%clk 0:20:27.6]} 7. Qxd4 {[%clk 0:20:42.8]} 7... f6 {[%clk 0:20:28.6]} 8. Nc3 {[%clk 0:20:44.7]} 8... Ne7 {[%clk 0:20:35.9]} 9. O-O-O {[%clk 0:20:45.2]} 9... d6 {[%clk 0:20:43]} 10. Bc4 {[%clk 0:20:34.5]} 10... Nc6 {[%clk 0:20:49]} 11. Qd5 {[%clk 0:20:30.7]} 11... Rf8 {[%clk 0:20:47.8]} 12. Qh5+ {[%clk 0:20:21.3]} 12... Ke7 {[%clk 0:20:24.3]} 13. Qxh7 {[%clk 0:16:59.3]} 13... Ne5 {[%clk 0:20:08.5]} 14. Qxg7+ {[%clk 0:17:00.9]} 14... Ke8 {[%clk 0:20:00.3]} 15. Bd5 {[%clk 0:16:37.6]} 15... c6 {[%clk 0:19:58.3]} 16. Bb3 {[%clk 0:16:37]} 16... b5 {[%clk 0:19:42.4]} 17. f4 {[%clk 0:16:19.6]} 17... Nf7 {[%clk 0:19:28.7]} 18. Bxf7+ {[%clk 0:16:24.3]} 18... Rxf7 {[%clk 0:19:36.3]} 19. Qg6 {[%clk 0:16:18.3]} 19... Qe7 {[%clk 0:18:41.8]} 20. e5 {[%clk 0:15:37.4]} 20... dxe5 {[%clk 0:18:42.7]} 21. fxe5 {[%clk 0:15:36.6]} 21... fxe5 {[%clk 0:18:41.6]} 22. Qxc6+ {[%clk 0:15:35.9]} 22... Kf8 {[%clk 0:18:47.4]} 23. Qxa8 {[%clk 0:15:36.3]} 23... Qc7 {[%clk 0:18:39.3]} 24. Rhf1 {[%clk 0:15:30.1]} 24... Rxf1 {[%clk 0:18:39.5]} 25. Rxf1+ {[%clk 0:15:16.2]} 25... Ke7 {[%clk 0:18:47.5]} 26. Qd5 {[%clk 0:15:20.1]} 26... Ke8 {[%clk 0:18:37.9]} 27. Qg8+ {[%clk 0:15:20.4]} 1-0